fUSD/lending_fUSD_20251215
["ID","MTS","AMOUNT","RATE_DAILY","PERIOD"]
[398526415,1765788643000,-1000.0,0.00016898,2]
[398526416,1765788643009,-151.48227111,0.00016899,2]
[398526417,1765788643019,-166.0,0.000169,2]
[398526418,1765788643028,-6766.0798,0.000169,2]
[398526419,1765788643038,-1868.8019668,0.000169,2]
[398526420,1765788643047,-4107.39890063,0.000169,2]
[398526421,1765788643057,-1952.74112458,0.000169,2]
[398526422,1765788643066,-150.0,0.00016903,2]
[398526423,1765788643076,-166.66,0.00016904,2]
[398526424,1765788643085,-543.7,0.00016904,2]
[398526425,1765788643095,-4098.0,0.00016907,2]
[398526426,1765788643104,-1000.0,0.00016913,2]
[398526427,1765788643113,-150.0,0.00016913,2]
[398526428,1765788643123,-1000.0,0.00016914,2]
[398526429,1765788643132,-1000.0,0.00016916,2]
[398526430,1765788643141,-1000.0,0.00016917,2]
[398526431,1765788643150,-150.0,0.00016917,2]
[398526432,1765788643160,-481.25235646,0.00016918,2]
[398526433,1765788643169,-1000.0,0.00016918,2]
[398526434,1765788643178,-150.0,0.0001692,2]
[398526435,1765788643187,-1000.0,0.00016921,2]
[398526436,1765788643196,-273.3,0.00016922,2]
[398526437,1765788643206,-150.99,0.00016922,2]
[398526438,1765788643215,-3779.05,0.00016922,2]
[398526439,1765788643224,-1204.98,0.00016922,2]
[398526440,1765788643234,-25642.6,0.00016922,2]
[398526441,1765788643243,-300.0,0.00016924,2]
[398526442,1765788643252,-1000.0,0.00016925,2]
[398526443,1765788643262,-300.0,0.00016926,2]
[398526444,1765788643271,-1000.0,0.00016928,2]
[398526445,1765788643280,-150.0,0.00016928,2]
[398526446,1765788643289,-1000.0,0.00016929,2]
[398526447,1765788643298,-748.67,0.00016929,2]
[398526449,1765788643307,-1000.0,0.0001694,2]
[398526451,1765788643317,-150.0,0.00016945,2]
[398526453,1765788643326,-1000.0,0.00016952,2]
[398526455,1765788643335,-1000.0,0.00016953,2]
[398526456,1765788643345,-150.0,0.00016953,2]
[398526457,1765788643355,-1000.0,0.00016956,2]
[398526458,1765788643364,-1000.0,0.00016958,2]
[398526459,1765788643376,-1000.0,0.00016966,2]
[398526460,1765788643385,-1000.0,0.00016967,2]
[398526461,1765788643395,-152.37400623,0.0001697,2]
[398526462,1765788643404,-300.0,0.00016972,2]
[398526463,1765788643415,-334.94217321,0.00016973,2]
[398526464,1765788643426,-575.23573332,0.00016973,2]
[398526465,1765788643435,-498.60294116,0.00016973,2]
[398526466,1765788643445,-500.0,0.00016973,2]
[398526467,1765788643454,-500.0,0.00016973,2]
[398526468,1765788643463,-500.0,0.00016973,2]
[398526469,1765788643472,-500.0,0.00016973,2]
[398526470,1765788643481,-500.0,0.00016973,2]
[398526471,1765788643490,-500.0,0.00016973,2]
[398526472,1765788643499,-500.82958274,0.00016973,2]
[398526473,1765788643508,-500.0,0.00016973,2]
[398526474,1765788643518,-500.0,0.00016973,2]
[398526475,1765788643527,-500.0,0.00016973,2]
[398526476,1765788643536,-626.45389736,0.00016973,2]
[398526477,1765788643546,-500.0,0.00016973,2]
[398526478,1765788643555,-500.0,0.00016973,2]
[398526479,1765788643564,-500.0,0.00016973,2]
[398526480,1765788643573,-500.0,0.00016973,2]
[398526481,1765788643583,-500.0,0.00016973,2]
[398526482,1765788643592,-500.0,0.00016973,2]
[398526483,1765788643601,-500.0,0.00016973,2]
[398526484,1765788643610,-544.96479342,0.00016973,2]
[398526485,1765788643620,-500.0,0.00016973,2]
[398526486,1765788643629,-500.98827769,0.00016973,2]
[398526487,1765788643639,-500.0,0.00016973,2]
[398526488,1765788643648,-200.0,0.00016973,2]
[398526489,1765788643658,-500.0,0.00016973,2]
[398526490,1765788643667,-150.0,0.00016973,2]
[398526491,1765788643676,-500.0,0.00016973,2]
[398526492,1765788643686,-150.0,0.00016973,2]
[398526493,1765788643695,-500.0,0.00016973,2]
[398526494,1765788643705,-531.0,0.00016973,2]
[398526495,1765788643715,-500.0,0.00016973,2]
[398526496,1765788643724,-979.0,0.00016973,2]
[398526497,1765788643733,-151.0,0.00016973,2]
[398526498,1765788643743,-500.0,0.00016973,2]
[398526499,1765788643752,-150.0,0.00016973,2]
[398526500,1765788643761,-1000.0,0.00016977,2]
[398526501,1765788643770,-1000.0,0.00016978,2]
[398526502,1765788643779,-151.0,0.00016982,2]
[398526503,1765788643789,-1500.0,0.00016983,2]
[398526504,1765788643798,-1500.0,0.00016983,2]
[398526505,1765788643807,-1500.0,0.00016983,2]
[398526506,1765788643816,-1500.0,0.00016983,2]
[398526507,1765788643825,-1500.0,0.00016983,2]
[398526508,1765788643835,-1500.0,0.00016983,2]
[398526509,1765788643843,-150.0,0.00016983,2]
[398526510,1765788643853,-150.0,0.00016983,2]
[398526511,1765788643862,-527.57313586,0.00016983,2]
[398526512,1765788643871,-150.0,0.00016986,2]
[398526513,1765788643881,-150.0,0.00016986,2]
[398526514,1765788643890,-215.07380001,0.00016986,2]
[398526515,1765788643899,-150.0,0.00016986,2]
[398526516,1765788643908,-150.0,0.0001699,2]
[398526517,1765788643917,-379.3298609,0.0001699,2]
[398526518,1765788643926,-379.3298609,0.0001699,2]
[398526519,1765788643935,-379.3298609,0.0001699,2]
[398526520,1765788643944,-151.0,0.00016991,2]
[398526521,1765788643954,-1000.0,0.00016993,2]
[398526522,1765788643966,-150.0,0.00016995,2]
[398526523,1765788643976,-1000.0,0.00016995,2]
[398526524,1765788643985,-1324.0,0.00016997,2]
[398526525,1765788643994,-1607.0,0.00016997,2]
[398526526,1765788644005,-611.0,0.00016997,2]
[398526527,1765788644014,-3451.0,0.00016997,2]
[398526528,1765788644023,-1261.0,0.00016997,2]
[398526529,1765788644034,-589.0,0.00016997,2]
[398526530,1765788644043,-150.0,0.00016997,2]
[398526531,1765788644052,-563.0,0.00016997,2]
[398526532,1765788644062,-4798.0,0.00016997,2]
[398526533,1765788644071,-3282.804762,0.00016999,2]
[398526534,1765788644080,-856.64478728,0.00016999,5]
[398526535,1765788644090,-1568.2639264,0.00016999,2]
[398526536,1765788644100,-10630.5869888,0.00016999,2]
[398526537,1765788644109,-100446.0842526,0.00016999,2]
[398526538,1765788644118,-4374.046878,0.00016999,2]
[398526539,1765788644127,-8401.8413032,0.00016999,2]
[398526540,1765788644136,-300.0,0.00016999,2]
[398526541,1765788644145,-748.67,0.00016999,2]
[398526542,1765788644154,-748.67,0.00016999,2]
[398526543,1765788644164,-748.67,0.00016999,2]
[398526544,1765788644173,-748.67,0.00016999,2]
[398526545,1765788644183,-748.67,0.00016999,2]
[398526546,1765788644192,-748.67,0.00016999,2]
[398526547,1765788644202,-748.67,0.00016999,2]
[398526548,1765788644211,-748.67,0.00016999,2]
[398526549,1765788644220,-748.67,0.00016999,2]
[398526550,1765788644229,-748.67,0.00016999,2]
[398526551,1765788644238,-748.67,0.00016999,2]
[398526552,1765788644247,-748.67,0.00016999,2]
[398526553,1765788644256,-748.67,0.00016999,2]
[398526554,1765788644266,-748.67,0.00016999,2]
[398526555,1765788644275,-748.67,0.00016999,2]
[398526556,1765788644284,-748.67,0.00016999,2]
[398526557,1765788644294,-748.67,0.00016999,2]
[398526558,1765788644303,-748.67,0.00016999,2]
[398526559,1765788644312,-748.67,0.00016999,2]
[398526560,1765788644323,-748.67,0.00016999,2]
[398526561,1765788644332,-748.79477574,0.00016999,2]
[398526562,1765788644341,-300.0,0.00016999,2]
[398526563,1765788644351,-666.0,0.00016999,2]
[398526564,1765788644361,-775780.69764671,0.00017,2]
[398526565,1765788644370,-3907421.54437374,0.00017,2]
[398526566,1765788644612,-2426.0,0.00016997,2]
[398526567,1765788644623,-12550.60926841,0.00017,2]
[398526568,1765788644632,-151.0,0.00017,2]
[398526569,1765788644641,-151.0,0.00017,2]
[398526570,1765788644651,-173.36,0.00017,2]
[398526571,1765788644660,-126675.11824545,0.00017,2]
[398526572,1765788644679,-3481.16016373,0.00017,2]
[398526573,1765788644690,-571007.88047063,0.00017,2]
[398526574,1765788644768,-1486.43761664,0.00017,2]
[398526575,1765788644779,-6253.60672997,0.00017,2]
[398526576,1765788646552,-1342.12278365,0.00016438,2]
[398526577,1765788646564,-1725.72023064,0.00016438,2]
[398526578,1765788646574,-1423.79976936,0.000169,2]
[398526612,1765789165829,191.04828342,0.0001571,2]
[398526638,1765789503395,191.04828341,0.00015701,2]
[398526642,1765789547536,150.0,0.00015288,2]
[398526643,1765789547570,150.0,0.00015288,2]
[398526644,1765789549527,150.0,0.00015288,2]
[398526645,1765789549866,150.0,0.00015288,2]
[398526646,1765789552045,150.0,0.00015288,2]
[398526709,1765789808409,-230.28897526,0.0001572,2]
[398526710,1765789809420,-19.71102474,0.0001572,2]
[398526711,1765789809441,-151.22367096,0.0001572,2]
[398526712,1765789812714,-185.35041865,0.0001572,2]
[398526713,1765789814857,-342.18880206,0.0001572,2]
[398526714,1765789816360,7808.93457562,0.000157,2]
[398526715,1765789816758,304.06693998,0.00015701,2]
[398526753,1765789834091,-604.65710833,0.0001572,2]
[398526754,1765789834100,-93.49806116,0.00015752,2]
[398526755,1765789834111,-206.50193884,0.00015752,2]
[398526756,1765789834122,-717.53515047,0.00015752,2]
[398526757,1765789834159,-462.91615925,0.00015752,2]
[398526760,1765789837544,-19.54869028,0.00015752,2]
[398526761,1765789837564,-247.04889527,0.00015752,2]
[398526762,1765789837577,-52.95110473,0.00015752,2]
[398526763,1765789837586,-2136.66591844,0.00015753,2]
[398526764,1765789837619,-3234.24970126,0.00015753,2]
[398526765,1765789837651,-1811.16,0.00015753,2]
[398526766,1765789837707,-1214.20435337,0.00015753,2]
[398526785,1765789839607,-475.70768933,0.00015753,2]
[398526786,1765789839619,-36242.0323376,0.00015753,2]
[398526787,1765789839628,-363.08,0.00015761,2]
[398526788,1765789839637,-3387.63,0.00015788,2]
[398526789,1765789839647,-150.0,0.000158,2]
[398526790,1765789839656,-3281.05,0.00015801,2]
[398526791,1765789839664,-1812.57,0.00015808,2]
[398526792,1765789839673,-1000.0,0.0001581,2]
[398526793,1765789839682,-999.0,0.00015817,3]
[398526794,1765789839691,-452.73,0.00015821,3]
[398526795,1765789839709,-1600.0,0.00015836,2]
[398526796,1765789839720,-151.16,0.00015894,2]
[398526797,1765789839730,-200.0,0.00015969,2]
[398526798,1765789839739,-207.4,0.00015969,2]
[398526799,1765789839748,-215.0738,0.00015969,2]
[398526800,1765789839757,-328.93435403,0.00015969,2]
[398526801,1765789839766,-200.0,0.00015995,2]
[398526802,1765789839775,-300.0,0.00016087,2]
[398526803,1765789839784,-200.0,0.00016087,2]
[398526804,1765789839794,-500.0,0.00016087,2]
[398526805,1765789839803,-200.0,0.00016087,2]
[398526806,1765789839812,-151.0,0.00016087,2]
[398526807,1765789839821,-151.0,0.00016087,2]
[398526808,1765789839830,-151.0,0.00016087,2]
[398526809,1765789839839,-151.0,0.00016087,2]
[398526810,1765789839848,-151.0,0.00016087,2]
[398526811,1765789839857,-151.0,0.00016087,2]
[398526812,1765789839866,-151.0,0.00016087,2]
[398526813,1765789839875,-151.0,0.00016087,2]
[398526814,1765789839884,-151.0,0.00016087,2]
[398526815,1765789839893,-151.0,0.00016087,2]
[398526816,1765789839904,-151.0,0.00016087,2]
[398526817,1765789839913,-157.82333405,0.00016087,2]
[398526818,1765789839922,-151.0,0.00016087,2]
[398526819,1765789839931,-151.0,0.00016087,2]
[398526820,1765789839940,-151.0,0.00016087,2]
[398526821,1765789839950,-151.0,0.00016087,2]
[398526823,1765789839958,-151.0,0.00016087,2]
[398526825,1765789839968,-574.12855637,0.00016087,2]
[398526827,1765789839977,-200.0,0.00016087,2]
[398526829,1765789839986,-1502.0,0.00016087,2]
[398526831,1765789839995,-500.0,0.00016107,2]
[398526833,1765789840005,-3536.82,0.00016107,2]
[398526835,1765789840014,-648.12,0.000162,2]
[398526837,1765789840025,-500.0,0.00016438,2]
[398526839,1765789840034,-530.41297037,0.00016438,2]
[398526841,1765789840043,-500.0,0.00016438,2]
[398526843,1765789840051,-500.0,0.00016438,2]
[398526845,1765789840061,-500.0,0.00016438,2]
[398526847,1765789840070,-500.0,0.00016438,2]
[398526849,1765789840079,-500.0,0.00016438,2]
[398526851,1765789840088,-150.5,0.00016438,2]
[398526853,1765789840097,-150.03,0.00016489,2]
[398526855,1765789840106,-500.0,0.00016499,2]
[398526857,1765789840115,-500.0,0.00016499,2]
[398526859,1765789840124,-414.65148789,0.00016499,2]
[398526861,1765789840133,-152.61,0.000165,2]
[398526863,1765789840142,-151.33,0.000165,2]
[398526865,1765789840151,-461.0,0.00016554,2]
[398526867,1765789840161,-3240.0,0.00016555,2]
[398526869,1765789840170,-1022.25146876,0.00016562,2]
[398526871,1765789840179,-595.37131296,0.00016635,2]
[398526873,1765789840188,-1502.0,0.00016635,2]
[398526876,1765789840197,-363.08,0.00016637,2]
[398526878,1765789840209,-461.0,0.00016639,2]
[398526880,1765789840218,-2318.3846804,0.0001666,2]
[398526882,1765789840228,-152.0,0.00016695,2]
[398526884,1765789840237,-152.0,0.00016695,2]
[398526886,1765789840246,-152.0,0.00016695,2]
[398526888,1765789840255,-152.0,0.00016695,2]
[398526889,1765789840263,-152.0,0.00016695,2]
[398526890,1765789840272,-152.0,0.00016695,2]
[398526891,1765789840282,-153.849405,0.00016695,2]
[398526892,1765789840291,-250.869368,0.00016695,2]
[398526893,1765789840300,-152.0,0.00016695,2]
[398526894,1765789840309,-153.67225194,0.00016695,2]
[398526895,1765789840319,-150.0,0.00016699,2]
[398526896,1765789840328,-933.0,0.00016699,2]
[398526897,1765789840337,-417.0,0.00016699,2]
[398526898,1765789840346,-150.0,0.00016699,2]
[398526899,1765789840355,-487.0,0.00016699,2]
[398526900,1765789840364,-500.0,0.00016699,2]
[398526901,1765789840373,-500.0,0.00016699,2]
[398526902,1765789840382,-150.0,0.00016699,2]
[398526903,1765789840391,-160.97425744,0.00016699,2]
[398526904,1765789840400,-200.0,0.00016699,2]
[398526905,1765789840409,-150.0,0.00016699,2]
[398526906,1765789840418,-150.0,0.00016699,2]
[398526907,1765789840427,-500.0,0.00016699,2]
[398526908,1765789840436,-500.0,0.00016699,2]
[398526909,1765789840445,-1000.0,0.0001673,2]
[398526910,1765789840454,-1000.0,0.00016731,2]
[398526911,1765789840463,-1000.0,0.00016731,2]
[398526912,1765789840472,-1000.0,0.00016734,2]
[398526913,1765789840481,-1000.0,0.00016738,2]
[398526914,1765789840491,-150.0,0.00016747,2]
[398526915,1765789840500,-1000.0,0.00016748,2]
[398526916,1765789840510,-150.0,0.00016755,2]
[398526917,1765789840520,-152.0,0.00016756,2]
[398526918,1765789840529,-152.0,0.00016756,2]
[398526919,1765789840540,-152.0,0.00016756,2]
[398526920,1765789840549,-1000.0,0.00016757,2]
[398526921,1765789840558,-151.48227111,0.00016759,2]
[398526922,1765789840570,-150.0,0.00016759,2]
[398526923,1765789840582,-300.0,0.00016764,2]
[398526924,1765789840592,-150.0,0.00016773,2]
[398526925,1765789840602,-1000.0,0.00016775,2]
[398526926,1765789840612,-1000.0,0.00016775,2]
[398526927,1765789840622,-1000.0,0.00016775,2]
[398526928,1765789840636,-1000.0,0.00016776,2]
[398526929,1765789840645,-1000.0,0.00016779,2]
[398526930,1765789840655,-1000.0,0.00016781,2]
[398526931,1765789840664,-1000.0,0.00016786,2]
[398526932,1765789840675,-150.0,0.00016787,2]
[398526933,1765789840684,-1000.0,0.00016789,2]
[398526934,1765789840693,-1000.0,0.00016791,2]
[398526935,1765789840704,-150.0,0.00016793,2]
[398526936,1765789840714,-300.0,0.00016794,2]
[398526937,1765789840724,-1000.0,0.00016796,2]
[398526938,1765789840733,-821.47978018,0.000168,2]
[398526939,1765789840747,-150.0,0.00016802,2]
[398526940,1765789840760,-1000.0,0.00016803,2]
[398526941,1765789840770,-1000.0,0.00016803,2]
[398526942,1765789840779,-300.0,0.00016804,2]
[398526943,1765789840788,-1000.0,0.00016807,2]
[398526944,1765789840798,-1000.0,0.00016808,2]
[398526945,1765789840807,-821.47978012,0.00016811,2]
[398526946,1765789840816,-1000.0,0.00016812,2]
[398526947,1765789840825,-1000.0,0.00016817,2]
[398526948,1765789840833,-1000.0,0.00016817,2]
[398526949,1765789840842,-1000.0,0.00016817,2]
[398526950,1765789840852,-150.0,0.00016817,2]
[398526951,1765789840861,-1000.0,0.00016821,2]
[398526952,1765789840871,-500.0,0.00016822,2]
[398526953,1765789840879,-821.47978012,0.00016822,2]
[398526954,1765789840889,-150.0,0.00016829,2]
[398526955,1765789840898,-150.0,0.0001683,2]
[398526956,1765789840908,-12734.00084286,0.0001683,2]
[398526957,1765789841549,-4630.3108,0.0001683,2]
[398526958,1765789841564,-1000.0,0.00016832,2]
[398526959,1765789841574,-821.47978012,0.00016833,2]
[398526960,1765789841583,-150.0,0.00016834,2]
[398526961,1765789841592,-461.0,0.00016834,2]
[398526962,1765789841601,-1000.0,0.00016835,2]
[398526963,1765789841610,-150.0,0.00016835,2]
[398526964,1765789841620,-150.0,0.00016836,2]
[398526965,1765789841630,-933.0,0.00016836,2]
[398526966,1765789841639,-417.0,0.00016836,2]
[398526967,1765789841648,-150.0,0.00016836,2]
[398526968,1765789841657,-487.0,0.00016836,2]
[398526969,1765789841667,-500.0,0.00016836,2]
[398526970,1765789841676,-500.0,0.00016836,2]
[398526971,1765789841685,-150.0,0.00016836,2]
[398526972,1765789841694,-500.0,0.00016836,2]
[398526973,1765789841703,-500.0,0.00016836,2]
[398526974,1765789841713,-1000.0,0.00016842,2]
[398526975,1765789841722,-1062.123,0.00016843,2]
[398526976,1765789841732,-150.0,0.00016843,2]
[398526977,1765789841741,-1000.0,0.00016843,2]
[398526978,1765789841750,-821.47978012,0.00016844,2]
[398526979,1765789841761,-1000.0,0.00016845,2]
[398526980,1765789841771,-821.47978012,0.00016856,2]
[398526981,1765789841780,-1000.0,0.00016857,2]
[398526982,1765789841789,-1000.0,0.00016859,2]
[398526983,1765789841798,-1000.0,0.00016861,2]
[398526984,1765789841808,-150.0,0.00016863,2]
[398526985,1765789841818,-1000.0,0.00016864,2]
[398526986,1765789841826,-1000.0,0.00016865,2]
[398526987,1765789841836,-300.0,0.00016866,2]
[398526988,1765789841846,-821.47978012,0.00016867,2]
[398526989,1765789841856,-2426.0,0.00016867,2]
[398526990,1765789841865,-563.0,0.00016867,2]
[398526991,1765789841875,-150.0,0.00016869,2]
[398526992,1765789841884,-4798.0,0.00016869,2]
[398526993,1765789841895,-1000.0,0.00016871,2]
[398526994,1765789841904,-1000.0,0.00016876,2]
[398526995,1765789841914,-150.0,0.00016876,2]
[398526996,1765789841924,-821.47978012,0.00016878,2]
[398526997,1765789841934,-1000.0,0.00016879,2]
[398526998,1765789841943,-1000.0,0.0001688,2]
[398526999,1765789841953,-1000.0,0.00016887,2]
[398527000,1765789841962,-150.0,0.00016888,2]
[398527001,1765789841972,-821.47978012,0.00016889,2]
[398527002,1765789841982,-1000.0,0.0001689,2]
[398527003,1765789841992,-300.0,0.00016891,2]
[398527004,1765789842002,-1000.0,0.00016893,2]
[398527005,1765789842012,-1000.0,0.00016893,2]
[398527006,1765789842022,-300.0,0.00016894,2]
[398527007,1765789842032,-1000.0,0.00016897,2]
[398527008,1765789842042,-6766.0798,0.000169,2]
[398527009,1765789842051,-2057.68,0.000169,2]
[398527010,1765789842062,-27610.5871278,0.000169,2]
[398527011,1765789842073,-266.97170956,0.000169,2]
[398527012,1765789842082,-224.464928,0.000169,2]
[398527013,1765789842092,-1871.99252972,0.000169,2]
[398527014,1765789842101,-821.47978012,0.000169,2]
[398527015,1765789842110,-381.99639997,0.000169,2]
[398527016,1765789842119,-10000.0,0.000169,2]
[398527017,1765789842129,-150.0,0.00016901,2]
[398527018,1765789842140,-1000.0,0.00016901,2]
[398527019,1765789842150,-300.0,0.00016902,2]
[398527020,1765789842160,-1000.0,0.00016903,2]
[398527021,1765789842169,-1000.0,0.00016905,2]
[398527022,1765789842179,-1000.0,0.00016905,2]
[398527023,1765789842188,-1000.0,0.0001691,2]
[398527024,1765789842198,-1000.0,0.0001691,2]
[398527025,1765789842208,-1000.0,0.00016915,2]
[398527026,1765789842217,-150.0,0.00016915,2]
[398527027,1765789842227,-1000.0,0.00016915,2]
[398527028,1765789842237,-481.25235646,0.00016919,2]
[398527030,1765789842246,-150.0,0.0001692,2]
[398527032,1765789842256,-461.0,0.00016923,2]
[398527033,1765789842265,-150.0,0.00016924,2]
[398527034,1765789842274,-1000.0,0.00016925,2]
[398527035,1765789842288,-1000.0,0.00016925,2]
[398527036,1765789842297,-150.0,0.00016926,2]
[398527037,1765789842307,-150.0,0.00016929,2]
[398527038,1765789842316,-1000.0,0.00016929,2]
[398527040,1765789842326,-150.0,0.00016931,2]
[398527042,1765789842336,-151.18156087,0.00016934,2]
[398527044,1765789842346,-1000.0,0.00016935,2]
[398527046,1765789842355,-1000.0,0.00016935,2]
[398527048,1765789842365,-1000.0,0.00016936,2]
[398527050,1765789842375,-1000.0,0.00016937,2]
[398527052,1765789842384,-150.0,0.00016943,2]
[398527054,1765789842394,-1000.0,0.00016943,2]
[398527056,1765789842404,-300.0,0.0001695,2]
[398527058,1765789842413,-150.0,0.00016952,2]
[398527059,1765789842423,-1000.0,0.00016955,2]
[398527060,1765789842433,-150.0,0.00016959,2]
[398527061,1765789842442,-150.0,0.00016961,2]
[398527062,1765789842454,-1000.0,0.00016965,2]
[398527064,1765789842466,-1000.0,0.0001697,2]
[398527065,1765789842476,-500.0,0.00016973,2]
[398527067,1765789842486,-500.0,0.00016973,2]
[398527069,1765789842495,-500.0,0.00016973,2]
[398527071,1765789842505,-515.49595078,0.00016973,2]
[398527073,1765789842514,-534.13325228,0.00016973,2]
[398527075,1765789842524,-500.0,0.00016973,2]
[398527077,1765789842534,-500.0,0.00016973,2]
[398527078,1765789842544,-500.0,0.00016973,2]
[398527080,1765789842553,-500.0,0.00016973,2]
[398527081,1765789842562,-626.45389736,0.00016973,2]
[398527082,1765789842572,-500.0,0.00016973,2]
[398527083,1765789842581,-167.01915454,0.00016973,2]
[398527084,1765789842592,-500.0,0.00016973,2]
[398527085,1765789842602,-500.0,0.00016973,2]
[398527086,1765789842612,-500.0,0.00016973,2]
[398527087,1765789842621,-500.0,0.00016973,2]
[398527088,1765789842631,-500.0,0.00016973,2]
[398527089,1765789842641,-500.0,0.00016973,2]
[398527090,1765789842651,-500.0,0.00016973,2]
[398527091,1765789842660,-500.0,0.00016973,2]
[398527092,1765789842670,-500.0,0.00016973,2]
[398527093,1765789842680,-500.0,0.00016973,2]
[398527094,1765789842690,-500.0,0.00016973,2]
[398527095,1765789842699,-500.0,0.00016973,2]
[398527096,1765789842710,-250.59182654,0.00016973,2]
[398527097,1765789842720,-535.77849194,0.00016973,2]
[398527098,1765789842730,-500.0,0.00016973,2]
[398527099,1765789842746,-200.0,0.00016973,2]
[398527100,1765789842763,-933.0,0.00016973,2]
[398527101,1765789842772,-417.0,0.00016973,2]
[398527102,1765789842781,-206.91068107,0.00016973,2]
[398527103,1765789842790,-487.0,0.00016973,2]
[398527104,1765789842800,-500.0,0.00016973,2]
[398527105,1765789842810,-165.45063143,0.00016973,2]
[398527106,1765789842819,-200.0,0.00016973,2]
[398527107,1765789842829,-500.0,0.00016973,2]
[398527108,1765789842838,-200.0,0.00016973,2]
[398527109,1765789842848,-500.0,0.00016973,2]
[398527110,1765789842857,-150.0,0.00016973,2]
[398527111,1765789842867,-1000.0,0.00016973,2]
[398527112,1765789842876,-1000.0,0.00016974,2]
[398527113,1765789842886,-151.0,0.00016974,2]
[398527114,1765789842895,-150.0,0.00016976,2]
[398527115,1765789842905,-150.0,0.00016976,2]
[398527116,1765789842914,-1000.0,0.00016977,2]
[398527117,1765789842925,-1000.0,0.00016979,2]
[398527118,1765789842935,-151.0,0.00016982,2]
[398527119,1765789842944,-1500.0,0.00016983,2]
[398527120,1765789842954,-1500.0,0.00016983,2]
[398527121,1765789842965,-1500.0,0.00016983,2]
[398527122,1765789842974,-1500.0,0.00016983,2]
[398527123,1765789842984,-1500.0,0.00016983,2]
[398527124,1765789842995,-1500.0,0.00016983,2]
[398527125,1765789843006,-1500.0,0.00016983,2]
[398527126,1765789843016,-152.37400623,0.00016983,2]
[398527127,1765789843027,-1000.0,0.00016985,2]
[398527128,1765789843036,-1000.0,0.00016986,2]
[398527129,1765789843045,-286.07168692,0.00016986,2]
[398527130,1765789843054,-215.07380001,0.00016986,2]
[398527131,1765789843063,-150.0,0.00016986,2]
[398527132,1765789843073,-2135.0,0.00016986,2]
[398527133,1765789843083,-151.0,0.00016991,2]
[398527134,1765789843092,-300.0,0.00016996,2]
[398527135,1765789843103,-381.99639992,0.00016997,2]
[398527136,1765789843114,-150.0,0.00016997,2]
[398527137,1765789843125,-150.0,0.00016997,2]
[398527138,1765789843136,-150.0,0.00016997,2]
[398527139,1765789843145,-150.0,0.00016997,2]
[398527140,1765789843155,-150.0,0.00016997,2]
[398527141,1765789843165,-150.0,0.00016997,2]
[398527142,1765789843175,-150.0,0.00016997,2]
[398527143,1765789843186,-150.0,0.00016997,2]
[398527144,1765789843199,-150.0,0.00016997,2]
[398527145,1765789843210,-150.0,0.00016997,2]
[398527146,1765789843226,-1607.0,0.00016997,2]
[398527147,1765789843237,-1324.0,0.00016997,2]
[398527148,1765789843247,-611.0,0.00016997,2]
[398527149,1765789843258,-3451.0,0.00016997,2]
[398527150,1765789843268,-1261.0,0.00016997,2]
[398527151,1765789843278,-589.0,0.00016997,2]
[398527152,1765789843288,-1000.0,0.00016998,2]